[Event "*** Titled Tuesday 3|2 Blitz"]
[Site "Chess.com"]
[Date "2017.06.06"]
[Round "7"]
[White "TenisMaster"]
[Black "GMHess"]
[Result "1-0"]
[WhiteElo "2684"]
[BlackElo "2626"]
[TimeControl "180+2"]
[EndTime "15:21:40 PDT"]
[Termination "TenisMaster won by resignation"]

1. e4 {[%clk 0:03:02]} 1... e5 {[%clk 0:02:54.7]} 2. Nf3 {[%clk 0:03:02.2]} 2...
Nc6 {[%clk 0:02:52.5]} 3. Bb5 {[%clk 0:03:03]} 3... Nf6 {[%clk 0:02:50.7]} 4. d3
{[%clk 0:02:55.1]} 4... d6 {[%clk 0:02:48.7]} 5. O-O {[%clk 0:02:48.9]} 5... Bd7
{[%clk 0:02:45.5]} 6. c3 {[%clk 0:02:46]} 6... a6 {[%clk 0:02:29.8]} 7. Ba4
{[%clk 0:02:45.8]} 7... Be7 {[%clk 0:02:26.8]} 8. Re1 {[%clk 0:02:42.4]} 8...
O-O {[%clk 0:02:26.8]} 9. Nbd2 {[%clk 0:02:39.5]} 9... Re8 {[%clk 0:02:24.9]}
10. Nf1 {[%clk 0:02:29.3]} 10... Bf8 {[%clk 0:02:25.4]} 11. Bg5 {[%clk
0:02:28.2]} 11... h6 {[%clk 0:02:25.6]} 12. Bh4 {[%clk 0:02:29]} 12... g5 {[%clk
0:02:24.8]} 13. Bg3 {[%clk 0:02:29.3]} 13... b5 {[%clk 0:02:13]} 14. Bc2 {[%clk
0:02:25.8]} 14... Bg7 {[%clk 0:01:52.2]} 15. Ne3 {[%clk 0:02:23.5]} 15... Ne7
{[%clk 0:01:45.4]} 16. h4 {[%clk 0:01:58.6]} 16... g4 {[%clk 0:01:36.1]} 17. Nh2
{[%clk 0:01:58.1]} 17... Qc8 {[%clk 0:01:21.3]} 18. d4 {[%clk 0:01:46.2]} 18...
Nh5 {[%clk 0:00:56.7]} 19. Nhxg4 {[%clk 0:01:31.8]} 19... Nxg3 {[%clk
0:00:57.3]} 20. fxg3 {[%clk 0:01:32.4]} 20... exd4 {[%clk 0:00:47.7]} 21. cxd4
{[%clk 0:01:31.2]} 21... Nc6 {[%clk 0:00:38.2]} 22. Nf5 {[%clk 0:01:07.6]} 22...
Bxf5 {[%clk 0:00:34.9]} 23. exf5 {[%clk 0:01:08.3]} 23... Rxe1+ {[%clk
0:00:34.8]} 24. Qxe1 {[%clk 0:01:08]} 24... Nxd4 {[%clk 0:00:36.1]} 25. Be4
{[%clk 0:01:07.4]} 25... c6 {[%clk 0:00:31.3]} 26. Qf2 {[%clk 0:00:59.6]} 26...
d5 {[%clk 0:00:26.9]} 27. Bd3 {[%clk 0:00:57.4]} 27... Qd7 {[%clk 0:00:11.2]}
28. Nxh6+ {[%clk 0:00:46.3]} 28... Bxh6 {[%clk 0:00:10.7]} 29. Qxd4 {[%clk
0:00:47.4]} 29... Qa7 {[%clk 0:00:08.5]} 30. Qxa7 {[%clk 0:00:43.4]} 30... Rxa7
{[%clk 0:00:10.4]} 31. Re1 {[%clk 0:00:42.6]} 31... Kf8 {[%clk 0:00:11]} 32. g4
{[%clk 0:00:42.9]} 32... Bf4 {[%clk 0:00:10.7]} 33. f6 {[%clk 0:00:42.3]} 33...
Bg3 {[%clk 0:00:11.3]} 34. Rc1 {[%clk 0:00:36.1]} 34... Rc7 {[%clk 0:00:06.5]}
35. h5 {[%clk 0:00:35.2]} 35... Bh4 {[%clk 0:00:04.2]} 36. Rf1 {[%clk
0:00:35.6]} 36... Bg5 {[%clk 0:00:05.4]} 37. Rf5 {[%clk 0:00:35.9]} 37... Be3+
{[%clk 0:00:06.3]} 38. Kf1 {[%clk 0:00:36.7]} 38... Kg8 {[%clk 0:00:07.4]} 39.
g5 {[%clk 0:00:37.2]} 39... c5 {[%clk 0:00:07.4]} 40. Re5 {[%clk 0:00:38.2]}
40... Kf8 {[%clk 0:00:04.3]} 41. Rxe3 {[%clk 0:00:39.1]} 41... c4 {[%clk
0:00:06.2]} 42. Re5 {[%clk 0:00:39.2]} 42... cxd3 {[%clk 0:00:06.8]} 43. Rxd5
{[%clk 0:00:40.4]} 43... Ke8 {[%clk 0:00:08.1]} 44. Rxd3 {[%clk 0:00:40.9]}
44... Rc5 {[%clk 0:00:09.2]} 45. Rg3 {[%clk 0:00:41]} 45... Rc1+ {[%clk
0:00:09.9]} 46. Kf2 {[%clk 0:00:41.6]} 46... Rh1 {[%clk 0:00:11.7]} 47. Rh3
{[%clk 0:00:42.4]} 47... Rb1 {[%clk 0:00:11.6]} 48. h6 {[%clk 0:00:43.3]} 48...
Rxb2+ {[%clk 0:00:12.9]} 49. Kg1 {[%clk 0:00:44.5]} 1-0

[Event "*** Titled Tuesday 3|2 Blitz"]
[Site "Chess.com"]
[Date "2017.06.06"]
[Round "7"]
[White "Drags95"]
[Black "AkshatChandra"]
[Result "0-1"]
[WhiteElo "2545"]
[BlackElo "2740"]
[TimeControl "180+2"]
[EndTime "15:21:55 PDT"]
[Termination "AkshatChandra won by resignation"]

1. d4 {[%clk 0:03:02]} 1... Nf6 {[%clk 0:03:00.2]} 2. c4 {[%clk 0:03:02.3]} 2...
e6 {[%clk 0:03:00.9]} 3. Nf3 {[%clk 0:03:02.3]} 3... b6 {[%clk 0:02:59.8]} 4. g3
{[%clk 0:03:02.7]} 4... Bb7 {[%clk 0:03:00.6]} 5. Bg2 {[%clk 0:03:03.5]} 5...
Be7 {[%clk 0:03:01.8]} 6. O-O {[%clk 0:03:04.3]} 6... O-O {[%clk 0:03:02.7]} 7.
Re1 {[%clk 0:03:01.9]} 7... Na6 {[%clk 0:03:03.3]} 8. Nc3 {[%clk 0:02:59.7]}
8... Ne4 {[%clk 0:03:04]} 9. Bd2 {[%clk 0:02:51.7]} 9... Nxc3 {[%clk 0:02:51.2]}
10. Bxc3 {[%clk 0:02:52.4]} 10... Be4 {[%clk 0:02:52.3]} 11. Ne5 {[%clk
0:02:52.2]} 11... Bxg2 {[%clk 0:02:51.9]} 12. Kxg2 {[%clk 0:02:54.1]} 12... c5
{[%clk 0:02:19.4]} 13. d5 {[%clk 0:02:53.9]} 13... Bf6 {[%clk 0:02:12.4]} 14.
Qa4 {[%clk 0:02:19.8]} 14... Nb8 {[%clk 0:01:48.3]} 15. Rad1 {[%clk 0:02:13.6]}
15... Qc7 {[%clk 0:01:44.2]} 16. Nf3 {[%clk 0:01:53.2]} 16... Bxc3 {[%clk
0:01:42.2]} 17. bxc3 {[%clk 0:01:55.1]} 17... e5 {[%clk 0:01:38.2]} 18. d6
{[%clk 0:01:39.4]} 18... Qb7 {[%clk 0:01:27]} 19. Rd5 {[%clk 0:01:40.8]} 19...
Nc6 {[%clk 0:01:17]} 20. Qc2 {[%clk 0:01:42.3]} 20... f6 {[%clk 0:01:14.2]} 21.
Nh4 {[%clk 0:01:37.8]} 21... Na5 {[%clk 0:01:10.1]} 22. Qe4 {[%clk 0:01:28.2]}
22... Qa6 {[%clk 0:00:53.1]} 23. Qg4 {[%clk 0:01:07.1]} 23... Qxc4 {[%clk
0:00:49.5]} 24. e4 {[%clk 0:01:08.4]} 24... Rf7 {[%clk 0:00:32.6]} 25. Nf5
{[%clk 0:01:09.2]} 25... Kh8 {[%clk 0:00:31.1]} 26. Ne7 {[%clk 0:01:07.4]} 26...
Rd8 {[%clk 0:00:19.7]} 27. Qh5 {[%clk 0:01:08.5]} 27... Rdf8 {[%clk 0:00:10.7]}
28. Re3 {[%clk 0:00:43.9]} 28... Nc6 {[%clk 0:00:10.6]} 29. Nxc6 {[%clk
0:00:21.5]} 29... dxc6 {[%clk 0:00:11]} 30. d7 {[%clk 0:00:23.4]} 30... g6
{[%clk 0:00:06.7]} 31. Qg4 {[%clk 0:00:04.2]} 31... cxd5 {[%clk 0:00:06.8]} 32.
Qe6 {[%clk 0:00:06.1]} 32... Rg7 {[%clk 0:00:03.6]} 33. exd5 {[%clk 0:00:08]}
33... Qa4 {[%clk 0:00:03.5]} 34. Qd6 {[%clk 0:00:09.4]} 34... Rd8 {[%clk
0:00:02.9]} 35. Qxf6 {[%clk 0:00:11]} 35... Qxd7 {[%clk 0:00:04]} 36. Rxe5
{[%clk 0:00:12.6]} 36... Kg8 {[%clk 0:00:04.8]} 37. d6 {[%clk 0:00:12.6]} 37...
Rf7 {[%clk 0:00:04.4]} 38. Qg5 {[%clk 0:00:09.2]} 38... Qxd6 {[%clk 0:00:04.9]}
39. Qe3 {[%clk 0:00:11.1]} 39... Qc6+ {[%clk 0:00:05.1]} 40. f3 {[%clk
0:00:11.9]} 40... Rdf8 {[%clk 0:00:04.8]} 41. h4 {[%clk 0:00:13.4]} 41... Rxf3
{[%clk 0:00:05.6]} 0-1

[Event "*** Titled Tuesday 3|2 Blitz"]
[Site "Chess.com"]
[Date "2017.06.06"]
[Round "7"]
[White "Enzy63"]
[Black "AllStarShark"]
[Result "1-0"]
[WhiteElo "2050"]
[BlackElo "2281"]
[TimeControl "180+2"]
[EndTime "15:22:05 PDT"]
[Termination "Enzy63 won by checkmate"]

1. d4 {[%clk 0:03:02]} 1... d5 {[%clk 0:03:00.6]} 2. Nf3 {[%clk 0:03:00.3]} 2...
Nf6 {[%clk 0:03:01.5]} 3. c4 {[%clk 0:03:01.2]} 3... dxc4 {[%clk 0:03:03.4]} 4.
e3 {[%clk 0:02:55.1]} 4... Bg4 {[%clk 0:03:04]} 5. Bxc4 {[%clk 0:02:54]} 5... e6
{[%clk 0:03:05.1]} 6. h3 {[%clk 0:02:50.7]} 6... Bh5 {[%clk 0:03:05.2]} 7. Nc3
{[%clk 0:02:47.7]} 7... Nc6 {[%clk 0:03:01.6]} 8. Bb5 {[%clk 0:02:24.7]} 8...
Bd6 {[%clk 0:02:58.9]} 9. Bxc6+ {[%clk 0:02:04.2]} 9... bxc6 {[%clk 0:03:00.8]}
10. e4 {[%clk 0:02:05.7]} 10... Bb4 {[%clk 0:02:49.9]} 11. Qa4 {[%clk 0:02:00]}
11... Bxc3+ {[%clk 0:02:30.5]} 12. bxc3 {[%clk 0:02:01.9]} 12... O-O {[%clk
0:02:31.8]} 13. Qxc6 {[%clk 0:01:56.2]} 13... Rb8 {[%clk 0:02:23.2]} 14. Nd2
{[%clk 0:01:28.8]} 14... Rb6 {[%clk 0:02:19.3]} 15. Qc4 {[%clk 0:01:28.6]} 15...
Bg6 {[%clk 0:02:13.1]} 16. Qe2 {[%clk 0:01:25.5]} 16... c5 {[%clk 0:02:08.1]}
17. dxc5 {[%clk 0:01:14.9]} 17... Rc6 {[%clk 0:01:58]} 18. O-O {[%clk
0:01:15.6]} 18... Re8 {[%clk 0:01:56.4]} 19. Ba3 {[%clk 0:01:10.7]} 19... Qa5
{[%clk 0:01:50.9]} 20. Bb4 {[%clk 0:01:11]} 20... Qa4 {[%clk 0:01:49.1]} 21. Qd1
{[%clk 0:01:00.5]} 21... Qb5 {[%clk 0:01:49.1]} 22. Nb3 {[%clk 0:00:48.9]} 22...
Nxe4 {[%clk 0:01:44.4]} 23. Nd4 {[%clk 0:00:49.1]} 23... Qb7 {[%clk 0:01:40.4]}
24. Nxc6 {[%clk 0:00:49.9]} 24... Qxc6 {[%clk 0:01:42.3]} 25. Qf3 {[%clk
0:00:50.3]} 25... Qb5 {[%clk 0:01:39.4]} 26. Rfd1 {[%clk 0:00:48.6]} 26... h6
{[%clk 0:01:37.1]} 27. a4 {[%clk 0:00:47.6]} 27... Qc4 {[%clk 0:01:34.7]} 28.
Rd4 {[%clk 0:00:47.1]} 28... Qb3 {[%clk 0:01:04.5]} 29. Rxe4 {[%clk 0:00:48.1]}
29... Qb2 {[%clk 0:01:01.7]} 30. Rd1 {[%clk 0:00:41]} 30... Bxe4 {[%clk
0:00:50.8]} 31. Qxe4 {[%clk 0:00:42.9]} 31... Qb3 {[%clk 0:00:52.6]} 32. Rd7
{[%clk 0:00:34.9]} 32... Qxa4 {[%clk 0:00:46.6]} 33. Qb7 {[%clk 0:00:35.4]}
33... Qa1+ {[%clk 0:00:39.1]} 34. Kh2 {[%clk 0:00:34.8]} 34... Qc1 {[%clk
0:00:38.4]} 35. Qc7 {[%clk 0:00:31.1]} 35... e5 {[%clk 0:00:35.5]} 36. g3 {[%clk
0:00:22.7]} 36... Qd2 {[%clk 0:00:32.1]} 37. Rxd2 {[%clk 0:00:19.5]} 37... e4
{[%clk 0:00:32.9]} 38. Rd7 {[%clk 0:00:19.6]} 38... e3 {[%clk 0:00:33.7]} 39.
fxe3 {[%clk 0:00:20]} 39... Rxe3 {[%clk 0:00:34.8]} 40. Rxf7 {[%clk 0:00:21.5]}
40... Re2+ {[%clk 0:00:35.4]} 41. Kg1 {[%clk 0:00:22.4]} 41... Re6 {[%clk
0:00:29.6]} 42. Rxg7+ {[%clk 0:00:22.3]} 42... Kh8 {[%clk 0:00:30.2]} 43. Rh7+
{[%clk 0:00:23.3]} 43... Kg8 {[%clk 0:00:06]} 44. Qf7# {[%clk 0:00:24.5]} 1-0

[Event "*** Titled Tuesday 3|2 Blitz"]
[Site "Chess.com"]
[Date "2017.06.06"]
[Round "7"]
[White "Wolverine_master"]
[Black "TamNguyen2"]
[Result "0-1"]
[WhiteElo "1987"]
[BlackElo "2128"]
[TimeControl "180+2"]
[EndTime "15:22:06 PDT"]
[Termination "TamNguyen2 won by checkmate"]

1. Nf3 {[%clk 0:03:02]} 1... Nf6 {[%clk 0:02:59.6]} 2. g3 {[%clk 0:03:02.9]}
2... g6 {[%clk 0:03:00.7]} 3. c4 {[%clk 0:03:04.5]} 3... Bg7 {[%clk 0:03:02.5]}
4. Bg2 {[%clk 0:03:06]} 4... O-O {[%clk 0:03:03.5]} 5. O-O {[%clk 0:03:07.6]}
5... c5 {[%clk 0:03:01.4]} 6. Nc3 {[%clk 0:03:09]} 6... d6 {[%clk 0:03:01]} 7.
a3 {[%clk 0:03:09.2]} 7... Nc6 {[%clk 0:02:55.9]} 8. Rb1 {[%clk 0:03:10.3]} 8...
a5 {[%clk 0:02:52.3]} 9. d3 {[%clk 0:03:11]} 9... Rb8 {[%clk 0:02:52.4]} 10. Ne1
{[%clk 0:03:11.7]} 10... e5 {[%clk 0:02:50.7]} 11. Bg5 {[%clk 0:03:12.4]} 11...
h6 {[%clk 0:02:47.9]} 12. Bxf6 {[%clk 0:03:12.7]} 12... Bxf6 {[%clk 0:02:45.5]}
13. Nc2 {[%clk 0:03:13.7]} 13... Bg7 {[%clk 0:02:45.3]} 14. b4 {[%clk
0:03:14.4]} 14... axb4 {[%clk 0:02:45.2]} 15. axb4 {[%clk 0:03:16.3]} 15... Nd4
{[%clk 0:02:27.9]} 16. e3 {[%clk 0:03:13.1]} 16... Ne6 {[%clk 0:02:24.9]} 17.
bxc5 {[%clk 0:03:02]} 17... Nxc5 {[%clk 0:02:21.8]} 18. d4 {[%clk 0:02:56.5]}
18... Ne6 {[%clk 0:02:19.4]} 19. Nd5 {[%clk 0:02:43.8]} 19... Bd7 {[%clk
0:02:03.2]} 20. dxe5 {[%clk 0:02:02.4]} 20... dxe5 {[%clk 0:02:01.4]} 21. f4
{[%clk 0:02:03.3]} 21... exf4 {[%clk 0:01:53.7]} 22. exf4 {[%clk 0:02:05.2]}
22... Re8 {[%clk 0:01:35.9]} 23. h3 {[%clk 0:01:57.3]} 23... Nc5 {[%clk
0:01:27.8]} 24. Kh2 {[%clk 0:01:55.5]} 24... Bc6 {[%clk 0:01:24.6]} 25. Ncb4
{[%clk 0:01:54.7]} 25... Ba4 {[%clk 0:01:22.6]} 26. Qg4 {[%clk 0:01:44.4]} 26...
Bd7 {[%clk 0:01:21.3]} 27. Qf3 {[%clk 0:01:41]} 27... Bf5 {[%clk 0:01:19.4]} 28.
Rbe1 {[%clk 0:01:39.7]} 28... Ne6 {[%clk 0:00:42.3]} 29. g4 {[%clk 0:00:59.7]}
29... Nd4 {[%clk 0:00:42.2]} 30. Qf2 {[%clk 0:00:58.8]} 30... Be6 {[%clk
0:00:40.2]} 31. Nd3 {[%clk 0:00:49.1]} 31... b5 {[%clk 0:00:37.4]} 32. Ne5
{[%clk 0:00:47.7]} 32... Bxe5 {[%clk 0:00:20.8]} 33. fxe5 {[%clk 0:00:47]} 33...
Nc6 {[%clk 0:00:22.7]} 34. Nf6+ {[%clk 0:00:47.6]} 34... Kg7 {[%clk 0:00:22.1]}
35. Nxe8+ {[%clk 0:00:48.8]} 35... Qxe8 {[%clk 0:00:23.9]} 36. Qf6+ {[%clk
0:00:49.6]} 36... Kg8 {[%clk 0:00:24.9]} 37. cxb5 {[%clk 0:00:32.8]} 37... Rxb5
{[%clk 0:00:26.8]} 38. Bxc6 {[%clk 0:00:28.5]} 38... Qxc6 {[%clk 0:00:28.7]} 39.
Rf2 {[%clk 0:00:27.5]} 39... Qc3 {[%clk 0:00:23.1]} 40. Ree2 {[%clk 0:00:20.3]}
40... Rb1 {[%clk 0:00:21]} 41. Qd8+ {[%clk 0:00:17.2]} 41... Kh7 {[%clk
0:00:20.1]} 42. Qf6 {[%clk 0:00:05.3]} 42... Bd5 {[%clk 0:00:17.9]} 43. g5
{[%clk 0:00:02.9]} 43... Rh1# {[%clk 0:00:17.3]} 0-1

[Event "*** Titled Tuesday 3|2 Blitz"]
[Site "Chess.com"]
[Date "2017.06.06"]
[Round "7"]
[White "hassler2"]
[Black "ProfCalculus"]
[Result "1-0"]
[WhiteElo "2298"]
[BlackElo "2148"]
[TimeControl "180+2"]
[EndTime "15:22:15 PDT"]
[Termination "hassler2 won on time"]

1. Na3 {[%clk 0:02:55.3]} 1... e5 {[%clk 0:02:54.9]} 2. b3 {[%clk 0:02:55.5]}
2... Nf6 {[%clk 0:02:45.6]} 3. Bb2 {[%clk 0:02:56]} 3... d6 {[%clk 0:02:46.4]}
4. e3 {[%clk 0:02:55.1]} 4... g6 {[%clk 0:02:46.6]} 5. d4 {[%clk 0:02:53.5]}
5... Nbd7 {[%clk 0:02:46.1]} 6. Nf3 {[%clk 0:02:53.3]} 6... Qe7 {[%clk
0:02:42.9]} 7. Nc4 {[%clk 0:02:53.7]} 7... e4 {[%clk 0:02:39.9]} 8. Ng1 {[%clk
0:02:51.3]} 8... Bg7 {[%clk 0:02:39.6]} 9. Ne2 {[%clk 0:02:51.4]} 9... O-O
{[%clk 0:02:38]} 10. h4 {[%clk 0:02:50.8]} 10... h5 {[%clk 0:02:26.3]} 11. Nf4
{[%clk 0:02:51.3]} 11... Re8 {[%clk 0:02:20.7]} 12. Be2 {[%clk 0:02:51.5]} 12...
Nf8 {[%clk 0:02:19.8]} 13. a4 {[%clk 0:02:46.6]} 13... a5 {[%clk 0:02:15.8]} 14.
Qd2 {[%clk 0:02:42.4]} 14... b6 {[%clk 0:02:16.1]} 15. O-O-O {[%clk 0:02:40.6]}
15... Ne6 {[%clk 0:02:11.5]} 16. Nxe6 {[%clk 0:02:38.8]} 16... Bxe6 {[%clk
0:02:11.6]} 17. f3 {[%clk 0:02:39.2]} 17... Bd5 {[%clk 0:02:01.6]} 18. f4 {[%clk
0:02:36.2]} 18... Be6 {[%clk 0:02:00.4]} 19. Na3 {[%clk 0:02:33.9]} 19... Bg4
{[%clk 0:01:57.7]} 20. Kb1 {[%clk 0:02:32.5]} 20... Bxe2 {[%clk 0:01:56.9]} 21.
Qxe2 {[%clk 0:02:34.4]} 21... d5 {[%clk 0:01:54.2]} 22. c4 {[%clk 0:02:33.1]}
22... c6 {[%clk 0:01:53.3]} 23. Rc1 {[%clk 0:02:32.8]} 23... Ng4 {[%clk
0:01:47.9]} 24. cxd5 {[%clk 0:02:31.3]} 24... cxd5 {[%clk 0:01:48.5]} 25. Nb5
{[%clk 0:02:31.9]} 25... Rac8 {[%clk 0:01:29.3]} 26. Ba3 {[%clk 0:02:23.8]}
26... Qd7 {[%clk 0:01:29.8]} 27. Bd6 {[%clk 0:02:10.1]} 27... Rxc1+ {[%clk
0:01:18.4]} 28. Rxc1 {[%clk 0:02:12]} 28... Rc8 {[%clk 0:01:19.5]} 29. Bc7
{[%clk 0:02:09.4]} 29... Bf8 {[%clk 0:01:17.4]} 30. Bxb6 {[%clk 0:02:03]} 30...
Rxc1+ {[%clk 0:01:10.5]} 31. Kxc1 {[%clk 0:02:03.4]} 31... Bb4 {[%clk
0:01:11.3]} 32. Kb2 {[%clk 0:01:50.4]} 32... Qc6 {[%clk 0:01:06.7]} 33. Bc7
{[%clk 0:01:33.8]} 33... Kf8 {[%clk 0:00:56.4]} 34. f5 {[%clk 0:01:34.3]} 34...
gxf5 {[%clk 0:00:54.4]} 35. Bf4 {[%clk 0:01:34.8]} 35... Ke7 {[%clk 0:00:51.7]}
36. g3 {[%clk 0:01:32.7]} 36... Kd7 {[%clk 0:00:51.3]} 37. Bg5 {[%clk
0:01:21.4]} 37... Bd6 {[%clk 0:00:39.4]} 38. Bf4 {[%clk 0:01:13.6]} 38... Bxf4
{[%clk 0:00:39.5]} 39. gxf4 {[%clk 0:01:10.4]} 39... Nf6 {[%clk 0:00:34.9]} 40.
Qe1 {[%clk 0:01:10.3]} 40... Ng4 {[%clk 0:00:29.5]} 41. Qe2 {[%clk 0:00:57.1]}
41... Ke6 {[%clk 0:00:24.3]} 42. Nc3 {[%clk 0:00:56.9]} 42... Kf6 {[%clk
0:00:20.3]} 43. Qd2 {[%clk 0:00:55.4]} 43... Ke6 {[%clk 0:00:16.8]} 44. Nb5
{[%clk 0:00:54.7]} 44... Kd7 {[%clk 0:00:13.9]} 45. Nc3 {[%clk 0:00:47.7]} 45...
Ke6 {[%clk 0:00:13.7]} 46. Ne2 {[%clk 0:00:46.7]} 46... Qb6 {[%clk 0:00:08.4]}
47. Nc3 {[%clk 0:00:46.1]} 47... Qb4 {[%clk 0:00:07.3]} 48. Qc1 {[%clk 0:00:42]}
48... Nf2 {[%clk 0:00:02.9]} 49. Ka2 {[%clk 0:00:38.9]} 49... Nd3 {[%clk
0:00:03.4]} 50. Qd2 {[%clk 0:00:39.5]} 1-0

[Event "*** Titled Tuesday 3|2 Blitz"]
[Site "Chess.com"]
[Date "2017.06.06"]
[Round "7"]
[White "Indianlad"]
[Black "Grebeniuk-S"]
[Result "1-0"]
[WhiteElo "2584"]
[BlackElo "2435"]
[TimeControl "180+2"]
[EndTime "15:22:18 PDT"]
[Termination "Indianlad won by resignation"]

1. e4 {[%clk 0:03:02]} 1... c5 {[%clk 0:03:00.6]} 2. Nf3 {[%clk 0:03:02.1]} 2...
d6 {[%clk 0:03:01.4]} 3. d4 {[%clk 0:03:03.3]} 3... cxd4 {[%clk 0:03:03.3]} 4.
Nxd4 {[%clk 0:03:05.2]} 4... Nf6 {[%clk 0:03:04.8]} 5. Nc3 {[%clk 0:03:07.1]}
5... g6 {[%clk 0:03:05.8]} 6. f3 {[%clk 0:03:06.7]} 6... Bg7 {[%clk 0:03:06.6]}
7. Be3 {[%clk 0:03:07.7]} 7... O-O {[%clk 0:03:08]} 8. Qd2 {[%clk 0:03:09]} 8...
Nc6 {[%clk 0:03:09]} 9. Bc4 {[%clk 0:03:08]} 9... Bd7 {[%clk 0:03:08.9]} 10. h4
{[%clk 0:03:08.6]} 10... Rb8 {[%clk 0:02:58.6]} 11. h5 {[%clk 0:03:07.4]} 11...
b5 {[%clk 0:02:52.8]} 12. Be2 {[%clk 0:03:07.6]} 12... b4 {[%clk 0:02:22.9]} 13.
Nd5 {[%clk 0:03:08.1]} 13... Nxd5 {[%clk 0:02:18.2]} 14. exd5 {[%clk 0:03:10]}
14... Nxd4 {[%clk 0:01:51]} 15. Bxd4 {[%clk 0:03:11.9]} 15... Bxd4 {[%clk
0:01:44.8]} 16. Qxd4 {[%clk 0:03:13.8]} 16... e5 {[%clk 0:01:46.4]} 17. dxe6
{[%clk 0:03:13.6]} 17... Bxe6 {[%clk 0:01:43.6]} 18. hxg6 {[%clk 0:03:10.9]}
18... fxg6 {[%clk 0:01:45.5]} 19. O-O-O {[%clk 0:03:04.9]} 19... b3 {[%clk
0:01:20.3]} 20. axb3 {[%clk 0:03:03.4]} 20... Qa5 {[%clk 0:01:16.2]} 21. Bc4
{[%clk 0:02:36.7]} 21... Qa1+ {[%clk 0:01:02.1]} 22. Kd2 {[%clk 0:02:37.1]}
22... Qa5+ {[%clk 0:01:03.7]} 23. Ke2 {[%clk 0:02:01.5]} 23... Rbe8 {[%clk
0:00:40.9]} 24. Kf2 {[%clk 0:02:02.1]} 24... Qf5 {[%clk 0:00:31.4]} 25. Bd3
{[%clk 0:01:59.8]} 25... Qf7 {[%clk 0:00:15.8]} 26. Ra1 {[%clk 0:02:00.1]} 26...
Bf5 {[%clk 0:00:13.4]} 27. Rxa7 {[%clk 0:01:59.2]} 27... Re7 {[%clk 0:00:14.4]}
28. Bc4 {[%clk 0:01:57]} 28... Be6 {[%clk 0:00:13.9]} 29. Qxd6 {[%clk
0:01:57.6]} 29... Rfe8 {[%clk 0:00:10.6]} 30. Bxe6 {[%clk 0:01:53.2]} 30... Qxe6
{[%clk 0:00:07.5]} 31. Qxe6+ {[%clk 0:01:51.7]} 31... Rxe6 {[%clk 0:00:09.4]}
32. Rhxh7 {[%clk 0:01:52]} 32... Re2+ {[%clk 0:00:10.5]} 33. Kg3 {[%clk
0:01:53.1]} 33... Rxc2 {[%clk 0:00:11.7]} 34. Rhg7+ {[%clk 0:01:50.6]} 34... Kh8
{[%clk 0:00:12.2]} 35. Rxg6 {[%clk 0:01:51.7]} 35... Ree2 {[%clk 0:00:12.1]} 36.
Kh3 {[%clk 0:01:52.7]} 36... Re1 {[%clk 0:00:09.9]} 37. Rg4 {[%clk 0:01:50.8]}
37... Rxb2 {[%clk 0:00:09.2]} 38. Ra5 {[%clk 0:01:50.5]} 38... Re7 {[%clk
0:00:08.6]} 39. Rh5+ {[%clk 0:01:49.1]} 39... Rh7 {[%clk 0:00:09.7]} 40. Rxh7+
{[%clk 0:01:51]} 40... Kxh7 {[%clk 0:00:11.6]} 41. b4 {[%clk 0:01:52.9]} 41...
Kh6 {[%clk 0:00:12.9]} 42. Kg3 {[%clk 0:01:54.1]} 42... Kh5 {[%clk 0:00:14.2]}
43. Re4 {[%clk 0:01:56]} 43... Rb1 {[%clk 0:00:16.1]} 44. Kf4 {[%clk 0:01:56]}
44... Kg6 {[%clk 0:00:15.6]} 45. g4 {[%clk 0:01:57.9]} 45... Rb3 {[%clk
0:00:15.9]} 46. Rc4 {[%clk 0:01:56.3]} 46... Kf6 {[%clk 0:00:16]} 47. Rc6+
{[%clk 0:01:57.4]} 47... Kf7 {[%clk 0:00:17]} 48. Rb6 {[%clk 0:01:58.7]} 48...
Ke7 {[%clk 0:00:14]} 49. g5 {[%clk 0:01:59.4]} 49... Rb1 {[%clk 0:00:13.8]} 50.
g6 {[%clk 0:01:59.7]} 50... Rg1 {[%clk 0:00:12.8]} 51. Kf5 {[%clk 0:02:00.1]}
51... Rd1 {[%clk 0:00:10.2]} 52. f4 {[%clk 0:02:00.5]} 52... Rd5+ {[%clk
0:00:10.5]} 53. Kg4 {[%clk 0:02:01.7]} 53... Rd1 {[%clk 0:00:12.4]} 54. Kg5
{[%clk 0:02:01.2]} 54... Rd5+ {[%clk 0:00:12.4]} 55. f5 {[%clk 0:02:01.8]} 55...
Rd1 {[%clk 0:00:13.7]} 56. f6+ {[%clk 0:02:01.5]} 56... Ke8 {[%clk 0:00:14.2]}
57. Rb8+ {[%clk 0:02:00.6]} 57... Kd7 {[%clk 0:00:15.3]} 58. g7 {[%clk
0:02:01.4]} 58... Rg1+ {[%clk 0:00:15.6]} 59. Kf5 {[%clk 0:02:02.4]} 59... Rf1+
{[%clk 0:00:16.6]} 60. Ke5 {[%clk 0:02:03.5]} 60... Re1+ {[%clk 0:00:16.1]} 61.
Kd4 {[%clk 0:02:04.5]} 61... Rd1+ {[%clk 0:00:09.5]} 62. Kc3 {[%clk 0:02:05]}
1-0